bitfinex/quotes_ETHUSD_20220123
["timestamp","ask_amount","ask_price","bid_price","bid_amount"]
[1642905420788,27.4862,2435.9,2435.6,0.0022737]
[1642905420986,2.4,2435.6,2435.4,0.00227368]
[1642905421185,1.90524527,2435.5,2435.4,0.00227368]
[1642905421387,0.69681,2435.5,2435.4,0.00227368]
[1642905421586,0.492,2435.5,2435.4,0.00227368]
[1642905422385,0.69681,2435.5,2435.4,0.00227368]
[1642905423638,2.5,2435.4,2434.5,5.66465576]
[1642905423834,2.5,2435.4,2434.5,2.1699402]
[1642905423835,0.69681,2435.3,2434.5,2.1699402]
[1642905424033,0.99681,2435.3,2434.6,0.00625265]
[1642905424232,1.99681,2435.3,2434.6,0.00625265]
[1642905424433,2.29681,2435.3,2434.6,0.00625265]
[1642905424636,1.29681,2435.3,2434.6,0.00625265]
[1642905425032,0.69681,2435.3,2434.6,0.00625265]
[1642905425233,0.492,2435.3,2434.6,0.00625265]
[1642905425633,0.492,2435.3,2434.8,0.00636513]
[1642905426042,0.492,2435.3,2434.9,0.00454738]
[1642905427501,0.99681,2435.3,2434.9,0.00454738]
[1642905427703,2.02502,2435.3,2434.9,0.00454738]
[1642905427900,2.32502,2435.3,2434.9,0.00454738]
[1642905428301,2.48922,2435.3,2434.9,0.00454738]
[1642905428704,1.02824,2435.2,2434.9,0.00454738]
[1642905428902,0.492,2435.1,2434.9,0.00454738]
[1642905429201,3.05680745,2434.9,2434.8,0.00636513]
[1642905429403,3.54880745,2434.9,2434.8,0.00636513]
[1642905429603,5.14880745,2434.9,2434.8,0.00636513]
[1642905429901,5.14880745,2434.9,2434.3,0.00079473]
[1642905429902,0.492,2434.9,2434.3,0.00079473]
[1642905430336,0.492,2434.9,2434.4,0.00284212]
[1642905430535,0.20481,2434.8,2434.4,0.00284212]
[1642905430741,0.492,2434.7,2434.4,0.00284212]
[1642905433540,0.20481,2434.5,2434.4,0.00284212]
[1642905433938,1.90481,2434.5,2434.4,0.00284212]
[1642905434787,0.20481,2434.5,2434.4,0.00284212]
[1642905435788,0.20481,2434.5,2434.4,0.00844728]
[1642905436186,2.8,2434.4,2434.3,0.00079473]
[1642905436392,3.66111,2434.4,2434.3,0.00079473]
[1642905436590,1.37027285,2434.0,2433.3,3.496023]
[1642905436793,0.69681,2433.9,2433.2,0.00072631]
[1642905436987,0.69681,2433.9,2433.4,0.00568423]
[1642905437388,2.59449371,2433.8,2433.4,0.00568423]
[1642905437590,2.8,2433.6,2433.2,0.00072631]
[1642905437847,0.492,2433.5,2433.2,0.00072631]
[1642905438045,2.20481,2433.3,2433.2,0.00072631]
[1642905438246,2.69681,2433.3,2433.2,0.00072631]
[1642905438550,3.99681,2433.3,2433.2,0.00186316]
[1642905438746,1.02892,2433.6,2433.3,1.43348856]
[1642905438946,0.492,2433.4,2433.3,1.43348856]
[1642905439245,0.492,2433.4,2433.3,1.38548308]
[1642905439948,1.85,2433.3,2433.2,0.00186316]
[1642905440148,2.342,2433.3,2433.2,0.00186316]
[1642905441150,0.492,2433.3,2433.2,0.00186316]
[1642905441351,0.492,2433.3,2432.6,0.0045474]
[1642905441352,1.02912,2433.1,2432.6,0.0045474]
[1642905441609,0.492,2433.0,2432.6,0.0045474]
[1642905441795,0.492,2433.0,2432.7,0.00284212]
[1642905441996,1.092,2433.0,2432.7,0.00284212]
[1642905444001,0.492,2433.0,2432.7,0.00284212]
[1642905444398,1.1934396,2433.4,2432.7,0.00284212]
[1642905444399,0.1643,2433.4,2432.7,0.00284212]
[1642905444598,0.00113684,2433.6,2432.7,0.00284212]
[1642905445000,0.00170527,2433.5,2432.7,0.00284212]
[1642905445436,0.00113685,2433.4,2432.7,0.00284212]
[1642905445638,0.49313685,2433.4,2432.7,0.00284212]
[1642905445840,0.1643,2433.3,2432.7,0.00284212]
[1642905446043,0.492,2433.2,2432.7,0.00284212]
[1642905447041,1.492,2433.2,2432.7,0.00284212]
[1642905447240,0.1643,2433.1,2432.7,0.00284212]
[1642905447841,0.1643,2433.1,2432.6,0.0045474]
[1642905447842,7.40906,2433.0,2432.6,0.0045474]
[1642905448042,1.1643,2432.9,2432.6,0.0045474]
[1642905448245,2.0,2432.8,2431.9,0.27639994]
[1642905448444,0.492,2432.7,2431.9,0.13819997]
[1642905448641,0.492,2432.7,2432.0,0.00397896]
[1642905449096,1.492,2432.7,2432.0,0.00397896]
[1642905449292,1.17905458,2432.4,2432.0,0.00397896]
[1642905449593,1.17905458,2432.4,2431.6,0.00625266]
[1642905449594,0.6563,2432.3,2431.6,0.00625266]
[1642905449990,0.492,2432.3,2431.2,0.00852635]
[1642905450392,0.1643,2432.2,2431.2,0.00852635]
[1642905450592,2.05942,2432.0,2431.0,0.0096632]
[1642905450795,1.28805403,2431.6,2431.0,0.0096632]
[1642905450994,1.28805403,2431.6,2430.1,1.58149979]
[1642905450995,3.67996,2431.4,2430.1,1.58149979]
[1642905451197,3.60398252,2431.3,2430.2,3.50020283]
[1642905451394,3.60568779,2431.3,2430.2,3.50475022]
[1642905451598,3.60568779,2431.3,2430.2,4.6774909]
[1642905451599,1.00113685,2431.2,2430.2,4.6774909]
[1642905451792,1.00113685,2431.2,2430.3,3.50020283]
[1642905451995,1.03002,2431.0,2430.3,3.50020283]
[1642905452194,1.03002,2431.0,2430.4,3.50361337]
[1642905452195,0.492,2430.9,2430.4,3.50361337]
[1642905452394,1.19449,2431.1,2431.0,3.07855519]
[1642905452595,0.492,2431.0,2430.8,1.13847368]
[1642905452845,0.00113685,2431.2,2431.0,1.47599999]
[1642905453548,0.44313685,2431.8,2431.0,2.75685681]
[1642905453946,0.00284212,2431.7,2431.0,2.75685681]
[1642905454150,0.39597897,2431.8,2431.0,2.75685681]
[1642905454345,0.69597897,2431.8,2431.1,0.00341054]
[1642905454749,0.69597897,2431.8,2431.1,2.03354183]
[1642905455050,0.69597897,2431.8,2431.2,0.00284212]
[1642905455350,0.69597897,2431.8,2431.1,0.00341054]
[1642905456596,0.39597897,2431.8,2431.1,2.12747538]
[1642905456796,1.19398,2432.3,2431.1,2.12747538]
[1642905456992,10.87438,2432.5,2431.2,3.50216909]
[1642905456993,4.97038,2432.5,2431.2,3.50216909]
[1642905457194,0.00170527,2432.0,2431.3,2.41884063]
[1642905457492,0.00113684,2431.9,2431.4,0.00170527]
[1642905457793,0.00397896,2432.4,2431.5,1.31299482]
[1642905457992,0.00397896,2432.4,2431.6,2.10735725]
[1642905458195,0.00341054,2432.3,2431.6,2.06498959]
[1642905458597,0.00284211,2432.2,2431.6,2.06498959]
[1642905458791,2.2232,2432.6,2431.5,3.35160867]
[1642905458792,1.12297354,2432.6,2431.5,3.35160867]
[1642905458996,1.0,2432.4,2431.6,3.61042597]
[1642905459192,1.0,2432.4,2431.6,3.61383651]
[1642905459193,0.00113685,2432.4,2431.6,3.61383651]
[1642905459398,0.00113685,2432.4,2431.7,0.00284211]
[1642905460196,0.00113685,2432.4,2431.9,1.26129517]
[1642905460643,0.00113685,2432.4,2432.0,0.00113684]
[1642905462946,0.00113685,2432.4,2431.6,0.00341054]
[1642905463343,0.00113685,2432.4,2431.5,0.00397896]
[1642905463643,0.00113685,2432.4,2431.5,1.2394175]
[1642905464089,0.00113685,2432.4,2431.6,0.00341054]
[1642905464493,0.492,2432.3,2431.6,0.00341054]
[1642905464691,0.492,2432.3,2431.4,0.00454738]
[1642905464692,24.1943,2432.2,2431.4,0.00454738]
[1642905464890,24.03,2432.0,2431.1,0.00625265]
[1642905465188,0.6565,2431.9,2431.1,0.00625265]
[1642905465391,24.03,2431.8,2431.1,0.00625265]
[1642905465588,1.6565,2431.7,2431.1,0.00625265]
[1642905465791,1.6565,2431.7,2431.0,5.264e-05]
[1642905465792,2.8,2431.6,2431.0,5.264e-05]
[1642905466094,25.68877369,2431.5,2431.0,5.264e-05]
[1642905466290,25.68877369,2431.5,2430.2,2.14739836]
[1642905466490,24.03327801,2431.3,2430.2,2.14739836]
[1642905466689,0.08855708,2431.4,2430.3,0.00454739]
[1642905466690,24.03,2431.1,2430.3,0.00454739]
[1642905466891,1.68662,2431.0,2430.3,0.00454739]
[1642905467091,1.68662,2431.0,2429.7,0.01235576]
[1642905467092,1.20803966,2430.6,2430.2,0.00511582]
[1642905467295,0.492,2430.5,2430.0,5.00727582]
[1642905467491,3.22486,2431.0,2430.1,0.00568424]
[1642905467492,2.8,2430.9,2430.1,0.00568424]
[1642905467692,0.1645,2430.8,2430.1,0.00568424]
[1642905467950,0.492,2430.7,2430.1,0.00568424]
[1642905468247,1.03025,2430.5,2430.1,0.00568424]
[1642905468444,0.492,2430.4,2430.1,0.00568424]
[1642905470149,0.492,2430.4,2430.2,1.32773336]
[1642905470348,0.492,2430.4,2430.1,0.00568424]
[1642905472698,2.03009,2430.9,2430.1,0.00568424]
[1642905472898,0.492,2430.8,2430.1,0.00568424]
[1642905473099,1.492,2430.8,2430.1,0.00568424]
[1642905473303,27.42939744,2430.8,2430.1,0.00568424]
[1642905473602,1.03023,2430.7,2430.1,0.00568424]
[1642905473799,0.492,2430.6,2430.1,0.00568424]
[1642905474202,0.492,2430.6,2430.2,0.94391992]
[1642905474400,1.0,2431.0,2430.2,0.94391992]
[1642905474401,0.61884874,2431.0,2430.2,0.94391992]
[1642905474599,0.08685181,2431.2,2430.2,0.94391992]
[1642905474801,1.03101684,2431.3,2430.5,1.08606554]
[1642905475105,1.03101684,2431.3,2430.6,0.00284212]
[1642905475356,0.00113684,2431.3,2430.6,0.00284212]
[1642905475546,3.22569806,2431.2,2430.6,0.00284212]
[1642905475743,3.22569806,2431.2,2430.2,0.00511582]
[1642905475744,3.39019806,2431.2,2430.2,0.00511582]
[1642905475943,1.03005,2431.0,2430.2,0.00511582]
[1642905476144,1.19455,2431.0,2430.2,0.00511582]
[1642905476344,1.19455,2431.0,2430.3,1.10887933]
[1642905476549,1.63005,2431.0,2430.1,0.00568424]
[1642905476747,1.63005,2431.0,2430.4,0.00397897]
[1642905476947,1.63005,2431.0,2430.1,3.50672418]
[1642905477146,1.63005,2431.0,2430.1,0.00568424]
[1642905477348,1.63005,2431.0,2430.2,0.00511582]
[1642905477547,1.63005,2431.0,2430.3,0.99313987]
[1642905477852,1.63005,2431.0,2430.4,0.00397897]
[1642905478049,1.6565,2431.1,2430.7,0.14533381]
[1642905478050,0.1645,2431.1,2430.7,0.14533381]
[1642905478249,1.03103684,2431.3,2430.7,0.14533381]
[1642905478449,0.00113684,2431.3,2430.8,0.00170527]
[1642905478849,1.68625,2431.7,2431.6,0.00227368]
[1642905479096,1.75,2431.6,2430.8,0.00284211]
[1642905479297,0.1645,2431.5,2430.8,0.00284211]
[1642905479497,0.16563685,2431.5,2430.8,0.00284211]
[1642905480101,1.19545685,2431.5,2430.3,3.50633036]
[1642905480299,1.19545685,2431.5,2430.4,3.50576194]
[1642905480503,2.19545685,2431.5,2430.5,3.50064613]
[1642905480701,1.19498869,2431.3,2430.5,4.5936672]
[1642905480901,1.02989,2431.3,2430.6,3.50462509]
[1642905481302,1.02989,2431.3,2430.7,0.00341054]
[1642905481702,1.02999,2431.1,2430.6,0.00397896]
[1642905481902,1.02999,2431.1,2430.1,3.5077325]
[1642905482102,1.52199,2431.1,2430.2,3.50716408]
[1642905482302,1.52199,2431.1,2430.3,3.50091142]
[1642905482505,1.03007,2430.9,2430.3,3.50659565]
[1642905482858,1.03007,2430.9,2430.0,1.45]
[1642905482859,0.74335181,2430.8,2430.0,1.45]
[1642905483050,1.03017,2430.7,2430.1,3.50128904]
[1642905483247,0.492,2430.6,2430.1,3.50299431]
[1642905483448,0.65763685,2430.6,2430.1,3.50299431]
[1642905484750,0.49313685,2430.6,2430.1,3.50299431]
[1642905486452,2.05657913,2430.6,2430.1,3.50299431]
[1642905486893,0.49313685,2430.6,2430.1,3.50299431]
[1642905487295,1.49313685,2430.6,2430.1,3.50299431]
[1642905487595,0.49313685,2430.6,2430.1,3.50299431]
[1642905488696,1.03023,2430.5,2430.1,0.00170527]
[1642905488896,1.03023,2430.5,2430.0,1.45]
[1642905488897,3.292,2430.4,2430.0,1.45]
[1642905489097,1.1645,2430.3,2430.0,1.45]
[1642905489296,0.492,2430.2,2430.0,1.45]
[1642905489497,1.7,2430.1,2429.3,0.27639994]
[1642905489698,0.492,2430.0,2429.3,0.27639994]
[1642905489896,0.492,2430.0,2429.5,1.07009369]
[1642905490096,0.492,2430.0,2429.6,3.50196887]
[1642905490349,0.492,2430.0,2429.6,3.50481099]
[1642905490647,0.492,2430.0,2429.7,0.00227369]
[1642905490851,0.492,2430.0,2429.6,3.40424256]
[1642905491054,0.00113685,2429.9,2429.6,3.40424256]
[1642905493357,0.00113685,2429.9,2429.3,0.27639994]
[1642905493854,0.00113685,2429.9,2429.4,2.03937947]
[1642905494300,0.00113685,2429.9,2429.5,0.00113685]
[1642905494501,0.00113685,2429.9,2429.6,0.89955238]
[1642905495404,0.00113685,2429.9,2429.7,2.05937209]
[1642905495802,0.00113685,2429.9,2429.6,0.89955238]
[1642905497003,0.00113685,2429.9,2429.5,0.00113685]
[1642905497402,0.49313685,2429.9,2429.5,0.00113685]
[1642905497602,0.79313685,2429.9,2429.5,0.00113685]
[1642905497855,0.79313685,2429.9,2429.3,0.0022737]
[1642905497856,1.09313685,2429.9,2429.3,0.0022737]
[1642905498046,1.09313685,2429.9,2429.6,1.08847368]
[1642905498446,1.09313685,2429.9,2429.1,0.00341054]
[1642905499852,1.09313685,2429.9,2429.6,1.08847368]
[1642905501260,1.09313685,2429.9,2429.1,0.00341054]
[1642905502901,0.49313685,2429.9,2429.1,0.00341054]
[1642905503496,0.49313685,2429.9,2429.6,1.08731761]
[1642905504400,0.79313685,2429.9,2429.6,1.08731761]
[1642905504596,1.09313685,2429.9,2429.1,0.00341054]
[1642905504996,0.79313685,2429.9,2429.1,0.00341054]
[1642905505448,1.09313685,2429.9,2429.1,0.00341054]
[1642905505850,1.09313685,2429.9,2429.6,1.08847368]
[1642905506051,1.09313685,2429.9,2429.1,0.00341054]
[1642905507652,1.09313685,2429.9,2429.6,0.99794148]
[1642905508051,1.09313685,2429.9,2429.1,0.00341054]
[1642905508750,1.09313685,2429.9,2429.0,0.00397897]
[1642905508751,1.03053,2429.8,2429.0,0.00397897]
[1642905508958,0.6565,2429.7,2429.0,0.00397897]
[1642905509206,1.42004941,2429.6,2429.0,0.00397897]
[1642905509406,0.6565,2429.5,2428.8,0.00511581]
[1642905509705,0.9565,2429.5,2428.7,0.00568424]
[1642905509904,1.9565,2429.5,2428.7,0.00568424]
[1642905510106,1.03079,2429.3,2428.7,0.00568424]
[1642905510305,0.492,2429.2,2428.7,0.00568424]
[1642905510705,0.492,2429.2,2429.0,0.54906523]
[1642905511106,0.492,2429.2,2429.1,0.00341054]
[1642905511307,1.0306,2429.7,2429.2,1.47599999]
[1642905511308,0.492,2429.6,2429.2,1.47599999]
[1642905511608,1.0306,2429.7,2429.2,1.47599999]
[1642905511609,0.00113685,2429.9,2429.3,0.0022737]
[1642905512008,2.55325,2429.8,2429.3,0.0022737]
[1642905512205,0.1645,2429.7,2429.3,0.0022737]
[1642905512406,0.492,2429.7,2429.3,0.0022737]
[1642905512863,1.492,2429.7,2429.3,0.0022737]
[1642905513050,0.492,2429.7,2429.3,0.0022737]
[1642905513250,1.492,2429.7,2429.3,0.0022737]
[1642905513450,0.492,2429.7,2429.3,0.0022737]
[1642905518099,0.57885181,2429.7,2429.3,0.0022737]
[1642905518596,0.57885181,2429.7,2429.2,1.32827369]
[1642905518597,1.7,2429.6,2429.2,1.32827369]
[1642905518797,0.492,2429.5,2429.2,1.32827369]
[1642905518997,0.49313685,2429.5,2429.2,1.32827369]
[1642905519196,0.79313685,2429.5,2429.2,1.32827369]
[1642905519597,1.09313685,2429.5,2429.2,1.32827369]
[1642905520451,0.49313685,2429.5,2429.2,1.32827369]
[1642905520653,0.49313685,2429.5,2429.3,1.99425609]
[1642905520654,0.00113685,2429.5,2429.3,1.99425609]
[1642905521050,0.00113685,2429.5,2429.2,3.32898262]
[1642905521249,0.00113685,2429.5,2429.2,3.36328436]
[1642905521450,0.00113685,2429.5,2429.3,1.43528171]
[1642905521653,0.00113685,2429.5,2429.4,3.71241732]
[1642905522057,0.00113685,2429.5,2429.4,4.88141732]
[1642905522251,0.00113685,2429.5,2429.4,2.819]
[1642905524406,0.00113685,2429.5,2429.4,6.22107819]
[1642905529764,0.00113685,2429.5,2429.4,7.72651819]
[1642905529962,0.00113685,2429.5,2429.4,8.02651819]
[1642905531361,2.8254118,2431.0,2429.8,0.0022737]
[1642905531594,0.1645,2431.0,2429.8,0.0022737]
[1642905531794,0.00738951,2430.8,2429.8,0.0022737]
[1642905532193,0.00682108,2430.7,2429.8,4.50435189]
[1642905532397,0.00682108,2430.7,2429.8,1.0022737]
[1642905532596,0.00625266,2430.6,2430.2,1.43828726]
[1642905532997,0.00568423,2430.5,2430.2,1.43828726]
[1642905533396,0.1645,2431.0,2430.2,1.43828726]
[1642905533397,0.00511581,2430.4,2430.2,1.43828726]
[1642905533795,0.00454739,2430.3,2430.2,3.38828726]
[1642905534395,0.00454739,2430.3,2430.2,5.72113332]
[1642905534596,0.00454739,2430.3,2430.2,9.22231491]
[1642905536051,0.00454739,2430.3,2430.2,5.72113332]
[1642905536251,0.00454739,2430.3,2430.2,10.0276163]
[1642905536455,0.00454739,2430.3,2430.2,11.0276163]
[1642905536653,0.00454739,2430.3,2430.2,7.52657332]
[1642905537856,0.00454739,2430.3,2430.2,11.02756204]
[1642905538056,4.739e-05,2430.3,2430.2,9.6016786]
[1642905538258,4.739e-05,2430.3,2430.2,34.8525786]
[1642905538654,4.739e-05,2430.3,2430.2,40.10315174]
[1642905539108,0.1645,2432.2,2430.3,3.96467572]
[1642905539304,7.48,2432.4,2430.3,3.96467572]
[1642905539305,0.1645,2432.3,2431.9,1.37089478]
[1642905539504,0.00682108,2431.5,2430.7,0.80472626]
[1642905539704,0.00682108,2431.5,2431.2,0.13819997]
[1642905539904,0.00625266,2431.4,2431.2,0.13819997]
[1642905540210,7.48,2432.4,2431.3,2.93819997]
[1642905540404,0.1643,2432.3,2431.3,2.93819997]
[1642905540604,0.17566847,2432.3,2431.3,2.93819997]
[1642905540906,0.17566847,2432.3,2431.3,3.23819997]
[1642905541104,0.17566847,2432.3,2431.4,1.3]
[1642905541304,0.17566847,2432.3,2431.5,2.21186849]
[1642905542103,0.17566847,2432.3,2431.8,1.10965008]
[1642905542504,0.17566847,2432.3,2431.9,2.04155191]
[1642905542709,0.17566847,2432.3,2431.8,1.10965008]
[1642905543955,0.01136847,2432.3,2431.8,1.10965008]
[1642905544157,0.01136847,2432.3,2431.9,2.004645]
[1642905544359,0.01136847,2432.3,2431.9,2.510085]
[1642905544556,0.01136847,2432.3,2431.9,3.810085]
[1642905544756,0.01136847,2432.3,2431.9,7.502585]
[1642905545363,0.01136847,2432.3,2432.2,1.17286596]
[1642905545755,0.01136847,2432.3,2431.9,3.6925]
[1642905546156,7.48,2432.6,2431.8,5.1668467]
[1642905546157,0.01080004,2432.2,2431.8,5.7668467]
[1642905546354,0.01080004,2432.2,2431.8,3.1768]
[1642905546597,0.01023162,2432.1,2431.8,5.14611627]
[1642905546897,0.0096632,2432.0,2431.9,1.17597471]
[1642905547098,0.0096632,2432.0,2431.9,3.38840092]
[1642905549002,0.0096632,2432.0,2431.9,1.17597471]
[1642905550555,0.0096632,2432.0,2431.9,5.16454124]
[1642905551353,7.48,2432.6,2432.4,1.18492651]
[1642905551753,0.00284211,2432.5,2432.2,0.0193264]
[1642905552153,0.00227369,2432.4,2432.2,0.0193264]
[1642905552554,0.00170527,2432.3,2432.2,0.0193264]
[1642905553455,1.65170527,2432.3,2432.2,0.0193264]
[1642905554305,0.00170527,2432.3,2432.2,0.0193264]
[1642905555811,0.00170527,2432.3,2432.2,1.5193264]
[1642905560557,0.00170527,2432.3,2432.2,5.6193264]
[1642905560758,0.00170527,2432.3,2432.2,4.6193264]
[1642905560954,0.00170527,2432.3,2432.2,5.6193264]
[1642905561355,0.00170527,2432.3,2432.2,9.3250264]
[1642905561613,0.00170527,2432.3,2432.2,6.5250264]
[1642905566867,0.00170527,2432.3,2432.2,5.0250264]
[1642905569731,0.00170527,2432.3,2432.2,3.7250264]
[1642905570533,0.00170527,2432.3,2432.2,0.0193264]
[1642905571335,0.00170527,2432.3,2432.2,2.8193264]
[1642905571532,0.1643,2433.0,2432.7,0.00341054]
[1642905571934,0.00341054,2432.9,2432.7,0.00341054]
[1642905572338,0.00284211,2432.8,2432.7,1.47161742]
[1642905572535,0.00284211,2432.8,2432.7,1.42161742]
[1642905573554,0.00284211,2432.8,2432.2,0.0193264]
[1642905573957,0.00227369,2432.7,2432.2,0.0193264]
[1642905574358,0.00170527,2432.6,2432.2,0.0193264]
[1642905574558,0.00170527,2432.6,2432.3,1.15687146]
[1642905574858,0.00113684,2432.5,2432.3,1.15687146]
[1642905581953,0.00113684,2432.5,2432.2,0.0193264]
[1642905582254,0.00113684,2432.5,2432.3,3.49850931]
[1642905582663,0.00113684,2432.5,2432.2,0.0193264]
[1642905584409,0.00113684,2432.5,2432.3,3.49869526]
[1642905584709,0.00113684,2432.5,2432.2,0.0193264]
[1642905585207,0.00113684,2432.5,2432.3,3.49870405]
[1642905585807,0.00113684,2432.5,2432.2,0.0193264]
[1642905586209,0.00113684,2432.5,2432.4,1.50229539]
[1642905587509,0.00113684,2432.5,2432.4,5.00049611]
[1642905587962,3.684e-05,2432.5,2432.4,28.34591425]
[1642905588156,3.684e-05,2432.5,2432.4,34.75687541]
[1642905588356,3.684e-05,2432.5,2432.4,35.96517541]
[1642905588553,3.684e-05,2432.5,2432.4,39.73787541]
[1642905588753,3.684e-05,2432.5,2432.4,41.30180537]
[1642905589763,3.684e-05,2432.5,2432.4,40.11898328]
[1642905590458,3.684e-05,2432.5,2432.4,39.73787541]
[1642905591611,0.1643,2433.9,2432.8,0.00076316]
[1642905592015,0.00738951,2433.8,2432.8,3.49896388]
[1642905592217,0.00738951,2433.8,2432.8,4.49896388]
[1642905592411,0.00682109,2433.7,2433.4,1.52351954]
[1642905592811,0.00625266,2433.6,2433.4,1.52351954]
[1642905593212,0.00568424,2433.5,2433.4,1.52351954]
[1642905598559,0.00568424,2433.5,2433.1,5.1374]
[1642905598760,0.00568424,2433.5,2432.9,3.836]
[1642905598960,0.00511582,2433.4,2432.9,3.836]
[1642905599415,0.00454739,2433.3,2432.9,3.836]
[1642905599614,0.00454739,2433.3,2433.0,1.19030815]
[1642905599815,0.00397897,2433.2,2433.0,1.19030815]
[1642905600123,0.00341054,2433.1,2433.0,1.19030815]
[1642905600314,0.00341054,2433.1,2432.9,3.836]
[1642905600717,0.00284212,2433.0,2432.9,3.836]
[1642905602117,0.00284212,2433.0,2432.8,0.00076316]
[1642905602519,1.8665737,2432.9,2432.8,0.00076316]
[1642905602874,2.3585737,2432.9,2432.8,0.00076316]
[1642905603061,2.3585737,2432.9,2432.2,0.0193264]
[1642905603062,2.8,2432.8,2432.2,0.0193264]
[1642905603261,2.92717078,2432.7,2432.2,0.0193264]
[1642905603461,1.55228866,2432.7,2432.3,0.00113684]
[1642905603662,0.55228866,2432.7,2432.3,0.00113684]
[1642905603861,1.55228866,2432.7,2432.3,0.00113684]
[1642905605260,0.492,2432.6,2432.3,0.00113684]
[1642905606907,2.85073,2432.6,2432.3,0.00113684]
[1642905607108,0.00315844,2432.4,2432.2,0.0193264]
[1642905607306,3.4563,2432.3,2432.2,0.0193264]
[1642905607508,3.7563,2432.3,2432.2,0.0193264]
[1642905607808,2.05,2432.2,2431.2,0.13819997]
[1642905608014,0.9563,2432.1,2431.2,0.13819997]
[1642905608209,0.9563,2432.1,2430.8,1.127]
[1642905608210,0.9563,2432.1,2431.3,0.00568424]
[1642905608409,1.2563,2432.1,2431.3,0.00568424]
[1642905608613,2.82252291,2432.0,2431.1,0.00682108]
[1642905608810,1.29706144,2431.6,2430.7,0.00909478]
[1642905609010,0.3,2431.3,2430.7,0.00909478]
[1642905609214,0.492,2431.2,2430.5,0.01023163]
[1642905609412,2.92590927,2431.1,2430.5,0.01023163]
[1642905609613,1.492,2431.0,2430.5,0.01023163]
[1642905609913,1.792,2431.0,2430.5,0.01023163]
[1642905610112,1.52208,2431.0,2430.5,0.01023163]
[1642905610363,0.792,2431.0,2430.5,0.01023163]
[1642905611255,0.792,2431.0,2430.6,1.10878271]
[1642905611656,0.792,2431.0,2430.7,0.00909478]
[1642905612659,0.792,2431.0,2430.5,0.01023163]
[1642905612857,0.742,2431.0,2430.5,0.01023163]
[1642905613858,1.77206,2431.0,2430.5,0.01023163]
[1642905614116,1.742,2431.0,2430.5,0.01023163]
[1642905614509,0.742,2431.0,2430.5,0.01023163]
[1642905614708,1.742,2431.0,2430.5,0.01023163]
[1642905615111,1.32546682,2430.7,2430.3,0.02]
[1642905615315,4.48669,2430.6,2430.2,0.02]
[1642905615511,0.6,2430.3,2430.2,0.02]
[1642905615709,1.092,2430.3,2429.4,0.02]
[1642905615914,1.85,2430.2,2429.4,0.02]
[1642905616112,0.9565,2430.3,2429.4,0.02]
[1642905616113,0.492,2430.1,2430.0,0.00284211]
[1642905617881,0.492,2430.1,2429.2,1.00040199]
[1642905617882,26.83,2429.9,2429.2,1.00040199]
[1642905618067,26.83,2429.9,2428.6,0.02]
[1642905618068,0.01244602,2429.5,2428.6,0.02]
[1642905618269,5.37377592,2429.8,2428.6,0.02]
[1642905618270,0.49580105,2429.3,2428.6,0.02]
[1642905618469,1.1645,2429.8,2429.3,0.9916021]
[1642905618667,0.3,2429.9,2429.3,0.9916021]
[1642905618668,0.492,2429.7,2429.3,0.9916021]
[1642905618867,1.8,2429.5,2429.3,0.9916021]
[1642905619065,0.492,2429.4,2429.3,0.9916021]
[1642905620568,0.00227369,2429.8,2429.3,0.9916021]
[1642905620766,0.00227369,2429.8,2429.4,2.06217786]
[1642905620970,1.16,2430.4,2429.3,0.9916021]
[1642905620971,0.00170527,2429.7,2429.3,0.9916021]
[1642905621369,0.00113684,2429.6,2429.4,1.29668341]
[1642905621915,0.492,2430.4,2429.8,1.395544]
[1642905621916,0.00511581,2430.3,2429.8,1.395544]
[1642905622313,0.63049026,2430.6,2429.8,1.395544]
[1642905622314,0.00454738,2430.2,2429.8,1.395544]
[1642905622712,0.63049026,2430.6,2429.8,1.395544]
[1642905622713,0.00397896,2430.1,2429.8,1.395544]
[1642905622914,0.00397896,2430.1,2429.3,1.00403009]
[1642905623114,0.00341054,2430.0,2429.3,0.9916021]
[1642905623518,0.00284211,2429.9,2429.3,0.9916021]
[1642905623917,0.00227369,2429.8,2429.4,1.2653065]
[1642905624214,0.492,2430.4,2429.4,1.2653065]
[1642905624215,0.00170527,2429.7,2429.4,1.2653065]
[1642905624416,0.00170527,2429.7,2429.3,0.9916021]
[1642905624615,0.00113684,2429.6,2429.3,0.9916021]
[1642905625117,0.00341054,2430.0,2429.3,0.9916021]
[1642905625402,0.00284211,2429.9,2429.3,0.9916021]
[1642905625586,0.00284211,2429.9,2429.3,2.33066309]
[1642905625789,0.00227369,2429.8,2429.3,2.33066309]
[1642905626192,0.00170527,2429.7,2429.3,0.9916021]
[1642905626587,0.00113684,2429.6,2429.3,0.9916021]
[1642905628292,0.44313684,2429.7,2429.3,0.9916021]
[1642905628491,0.44313684,2429.7,2429.4,0.00113684]
[1642905629110,0.52998865,2429.7,2429.4,0.00113684]
[1642905629312,0.82998865,2429.7,2429.4,0.00113684]
[1642905629610,0.52998865,2429.7,2429.4,0.00113684]
[1642905630412,0.82998865,2429.7,2429.4,0.00113684]
[1642905630612,0.3,2429.6,2429.4,0.00113684]
[1642905632961,0.52998865,2429.7,2429.4,0.00113684]
[1642905634362,0.82998865,2429.7,2429.4,0.00113684]
[1642905634757,0.52998865,2429.7,2429.4,0.00113684]
[1642905635262,0.6072112,2429.9,2429.4,2.2385378]
[1642905635660,1.66072026,2430.6,2429.4,2.2385378]
[1642905635661,0.00113685,2429.8,2429.4,2.2385378]
[1642905635962,0.00511581,2430.5,2429.5,1.1648691]
[1642905636158,0.00511581,2430.5,2429.6,2.09598834]
[1642905636361,0.492,2430.7,2429.6,2.09598834]
[1642905636362,0.00454739,2430.4,2429.6,2.09598834]
[1642905636810,0.492,2430.7,2429.6,2.09598834]
[1642905636811,0.00397897,2430.3,2429.6,2.09598834]
[1642905637210,0.00341054,2430.2,2429.6,2.09598834]
[1642905637608,0.00284212,2430.1,2429.6,2.09598834]
[1642905637811,0.00284212,2430.1,2430.0,1.52403221]
[1642905638012,0.792,2430.7,2430.0,1.52403221]
[1642905638310,0.00568424,2430.6,2430.0,1.52403221]
[1642905638509,0.792,2430.7,2430.6,0.01136848]
[1642905641461,0.79541054,2430.7,2430.0,1.43824281]
[1642905641861,0.00284212,2430.6,2430.0,1.43824281]
[1642905642161,0.00227369,2430.5,2430.0,1.43824281]
[1642905642363,0.00227369,2430.5,2430.1,1.99878809]
[1642905642561,0.00170527,2430.4,2430.0,1.43824281]
[1642905642962,0.00113685,2430.3,2430.0,1.43824281]